bitfinex/quotes_BTCUSD_20251219
["timestamp","ask_amount","ask_price","bid_price","bid_amount"]
[1766123537346,0.00576,87336.0,87331.0,0.01374082]
[1766123537511,0.00576,87337.0,87327.0,0.60091]
[1766123537691,0.01144767,87354.0,87329.0,0.45252]
[1766123537879,0.01144806,87351.0,87333.0,0.60091]
[1766123538082,0.487,87349.0,87332.0,0.45252]
[1766123538279,0.49844832,87349.0,87332.0,0.45252]
[1766123538481,0.487,87349.0,87332.0,0.45252]
[1766123538755,0.487,87360.0,87333.0,0.61465051]
[1766123538956,0.487,87360.0,87339.0,0.51206187]
[1766123539236,0.487,87358.0,87339.0,0.51206187]
[1766123539382,0.01144741,87356.0,87339.0,0.45252]
[1766123539586,0.01720754,87355.0,87341.0,0.05954187]
[1766123539791,0.00576,87355.0,87341.0,0.05954187]
[1766123539996,0.487,87358.0,87341.0,0.05954187]
[1766123540397,0.01144819,87350.0,87341.0,0.05954187]
[1766123540592,0.00576,87349.0,87341.0,0.05954187]
[1766123540825,0.001099,87341.0,87334.0,0.45252]
[1766123540972,0.487,87348.0,87328.0,0.60667]
[1766123541379,0.49844845,87348.0,87330.0,0.60091]
[1766123541577,0.01145029,87334.0,87324.0,0.00036529]
[1766123541778,0.00576,87336.0,87325.0,0.05954187]
[1766123542164,0.00576,87336.0,87324.0,0.05990716]
[1766123544412,0.00576,87336.0,87326.0,1.05343]
[1766123544754,3.59e-06,87327.0,87326.0,1.05343]
[1766123544879,3.59e-06,87327.0,87326.0,1.05919]
[1766123548394,0.22894079,87359.0,87326.0,1.05919]
[1766123548395,0.00576,87354.0,87342.0,0.01144924]
[1766123548593,0.00576,87361.0,87344.0,0.05954187]
[1766123548746,0.001099,87344.0,87343.0,0.45252]
[1766123548950,0.001099,87344.0,87342.0,0.00576]
[1766123549133,0.487,87359.0,87341.0,0.46396937]
[1766123549315,0.00762065,87358.0,87341.0,1.05343]
[1766123549914,0.00576,87358.0,87354.0,1.05343]
[1766123550197,0.00576,87359.0,87354.0,0.451421]
[1766123550503,0.00576,87359.0,87339.0,0.60091]
[1766123550719,0.00576,87359.0,87339.0,0.61235963]
[1766123550908,0.01144727,87357.0,87339.0,0.60091]
[1766123551061,0.49844727,87357.0,87339.0,0.60091]
[1766123551836,0.487,87357.0,87339.0,0.60091]
[1766123552360,0.24037765,87363.0,87340.0,0.45252]
[1766123552600,0.00576,87356.0,87345.0,0.60091]
[1766123554410,0.49844767,87354.0,87338.0,0.00576]
[1766123554658,0.0003765,87339.0,87338.0,0.00576]
[1766123554864,0.0003765,87339.0,87334.0,0.00576]
[1766123555167,0.000251,87335.0,87331.0,0.45252]
[1766123555305,0.000251,87335.0,87331.0,0.45828]
[1766123556283,0.000251,87335.0,87331.0,0.45252]
[1766123556485,0.000251,87335.0,87331.0,0.45288529]
[1766123558015,1e-06,87335.0,87331.0,0.00036529]
[1766123558207,0.01145094,87329.0,87315.0,0.59646]
[1766123558370,0.01145094,87329.0,87311.0,0.54297187]
[1766123558371,0.47519455,87329.0,87313.0,0.00576]
[1766123558575,0.00612455,87329.0,87317.0,0.59646]
[1766123558777,0.00527555,87329.0,87319.0,0.59646]
[1766123559567,0.47483,87334.0,87319.0,0.59646]
[1766123559774,0.47483,87334.0,87319.0,0.59682455]
[1766123559981,0.00576,87333.0,87319.0,0.59682455]
[1766123560181,0.00576,87333.0,87319.0,0.00036455]
[1766123560390,0.47483,87332.0,87319.0,0.00036455]
[1766123560628,0.000364,87319.0,87306.0,0.48343]
[1766123560832,0.00576,87329.0,87319.0,0.59646]
[1766123561035,0.00576,87340.0,87325.0,0.48343]
[1766123561182,0.48059,87340.0,87320.0,0.60222]
[1766123561385,0.00576,87339.0,87325.0,0.59646]
[1766123561583,0.00576,87339.0,87321.0,0.25423396]
[1766123561584,0.00576,87339.0,87327.0,0.59646]
[1766123561785,0.47483,87346.0,87327.0,0.59646]
[1766123561989,0.00576,87340.0,87327.0,0.59646]
[1766123562368,0.00576,87340.0,87327.0,1.07989]
[1766123562971,0.00576,87343.0,87329.0,0.60791094]
[1766123563169,0.00576,87343.0,87329.0,0.83692768]
[1766123563354,0.00576,87343.0,87332.0,0.01145055]
[1766123563761,0.00576,87343.0,87332.0,0.60791055]
[1766123563956,0.48059,87346.0,87332.0,0.59646]
[1766123564243,0.48059,87346.0,87332.0,0.60791055]
[1766123564421,0.48059,87346.0,87332.0,0.59646]
[1766123564624,0.48059,87346.0,87332.0,0.595725]
[1766123565156,0.49203872,87346.0,87327.0,0.48919]
[1766123565363,0.47483,87342.0,87327.0,0.48919]
[1766123565642,0.4331,87341.0,87327.0,0.00576]
[1766123566453,0.47483,87342.0,87327.0,0.00576]
[1766123567086,0.47483,87342.0,87327.0,1.08565]
[1766123567957,0.47483,87342.0,87327.0,0.00576]
[1766123568159,0.47483,87342.0,87329.0,0.59646]
[1766123568361,0.47483,87342.0,87328.0,0.48343]
[1766123568659,0.47483,87341.0,87327.0,0.00576]
[1766123569483,0.47483,87341.0,87327.0,0.60222]
[1766123570029,0.47483,87341.0,87327.0,0.00576]
[1766123570416,0.44454924,87342.0,87327.0,0.00576]
[1766123570417,0.47483,87339.0,87327.0,0.00576]
[1766123570616,0.47483,87338.0,87327.0,0.00576]
[1766123571636,0.433101,87335.0,87322.0,0.00576]
[1766123571910,0.47483,87334.0,87322.0,0.00010949]
[1766123572257,0.01145042,87333.0,87322.0,0.00010949]
[1766123572661,0.48628029,87334.0,87322.0,0.00010949]
[1766123572866,0.22901112,87332.0,87322.0,0.00010949]
[1766123573125,0.47483,87327.0,87314.0,0.00576]
[1766123573311,0.47483,87326.0,87314.0,0.00576]
[1766123574491,0.47483,87326.0,87310.0,0.01145344]
[1766123574690,0.47483,87326.0,87311.0,0.01145331]
[1766123575460,0.47483,87326.0,87310.0,0.01145344]
[1766123575678,0.47483,87326.0,87311.0,0.01145331]
[1766123576064,0.4331,87321.0,87306.0,0.24053245]
[1766123576296,0.48059,87320.0,87305.0,0.01145409]
[1766123576430,0.47483,87320.0,87307.0,0.01145383]
[1766123576633,0.48059,87320.0,87308.0,0.59646]
[1766123577500,0.48059,87320.0,87308.0,0.6079137]
[1766123577702,0.48059,87320.0,87308.0,0.59646]
[1766123577846,0.48059,87320.0,87309.0,0.01145357]
[1766123578028,0.48059,87320.0,87308.0,0.6079137]
[1766123578029,0.48059,87320.0,87308.0,0.59646]
[1766123578996,0.48059,87320.0,87308.0,0.6079137]
[1766123579196,0.48059,87320.0,87309.0,0.01145357]
[1766123579403,0.47483,87320.0,87309.0,0.01145357]
[1766123579578,0.48059,87320.0,87309.0,0.01145357]
[1766123579938,0.48059,87320.0,87308.0,0.59646]
[1766123580142,0.48059,87320.0,87308.0,0.6079137]
[1766123580289,0.48059,87320.0,87309.0,0.01145357]
[1766123581306,0.00576,87325.0,87320.0,0.001099]
[1766123581563,0.00010933,87327.0,87317.0,0.01145252]
[1766123581763,0.00010933,87327.0,87316.0,0.49488265]
[1766123581979,0.00010933,87327.0,87317.0,0.59646]
[1766123582188,0.47483,87338.0,87324.0,0.0114516]
[1766123582401,0.47483,87346.0,87326.0,0.01145134]
[1766123582614,0.44454845,87348.0,87328.0,1.07989]
[1766123582615,0.00576,87345.0,87328.0,1.07989]
[1766123582856,0.48059,87345.0,87328.0,1.07989]
[1766123583675,0.00576,87344.0,87328.0,1.07989]
[1766123583882,0.00576,87343.0,87329.0,0.62135]
[1766123584327,0.00576,87343.0,87329.0,0.63280094]
[1766123584547,0.01144754,87355.0,87329.0,0.63280094]
[1766123584548,0.00576,87347.0,87335.0,0.62135]
[1766123584722,0.48962,87347.0,87334.0,0.49136]
[1766123584934,0.48962,87347.0,87332.0,0.01721055]
[1766123585080,0.48386,87346.0,87332.0,0.01721055]
[1766123585686,0.48962,87346.0,87333.0,0.61048]
[1766123586573,0.48962,87346.0,87332.0,0.45609]
[1766123586574,0.01144885,87345.0,87332.0,0.45609]
[1766123586764,0.000109,87333.0,87321.0,0.04588]
[1766123586919,0.48701,87336.0,87322.0,0.00576]
[1766123587329,0.48701,87336.0,87322.0,0.01721186]
[1766123587755,0.48701,87336.0,87322.0,0.00576]
[1766123588376,0.0172095,87340.0,87322.0,0.00576]
[1766123588377,0.48701,87334.0,87322.0,0.00576]
[1766123588981,0.48701,87334.0,87322.0,0.01721186]
[1766123589195,0.48701,87334.0,87323.0,0.01145173]
[1766123589397,0.48701,87334.0,87322.0,0.62769186]
[1766123589647,0.48701,87334.0,87322.0,0.61624]
[1766123589864,0.48701,87334.0,87322.0,0.00576]
[1766123590075,0.48701,87332.0,87322.0,0.00576]
[1766123592948,0.00576,87334.0,87324.0,0.0114516]
[1766123593148,0.00576,87338.0,87332.0,0.00099]
[1766123593525,0.00576,87338.0,87327.0,0.01145121]
[1766123593726,0.48726098,87343.0,87327.0,0.01145121]
[1766123593929,0.00576,87338.0,87327.0,0.62193121]
[1766123594280,0.00576,87338.0,87328.0,0.61048]
[1766123594496,0.00576,87338.0,87328.0,0.62193108]
[1766123595450,0.00477,87338.0,87329.0,0.61048]
[1766123595953,0.00576,87341.0,87329.0,0.61048]
[1766123597466,0.001099,87329.0,87311.0,0.61048]
[1766123597686,0.62625373,87340.0,87311.0,0.61048]
[1766123597687,0.01145186,87322.0,87311.0,0.00036455]
[1766123597923,0.01145239,87318.0,87311.0,4.55e-06]
[1766123598157,0.71607358,87312.0,87311.0,4.55e-06]
[1766123598349,0.00576,87317.0,87279.0,0.45033]
[1766123598350,0.4984654,87295.0,87279.0,0.45033]
[1766123598560,0.05954187,87291.0,87279.0,0.45609]
[1766123600261,0.05954187,87291.0,87279.0,0.00576]
[1766123600476,0.54655187,87291.0,87279.0,0.00576]
[1766123601524,0.48701,87291.0,87279.0,0.00576]
[1766123602926,0.00576,87294.0,87281.0,0.01145724]
[1766123603170,0.00036455,87295.0,87284.0,0.01145685]
[1766123603377,0.00036455,87295.0,87286.0,0.01145659]
[1766123603605,4.55e-06,87295.0,87289.0,1.07226619]
[1766123603808,4.55e-06,87295.0,87290.0,0.61048]
[1766123604128,4.55e-06,87295.0,87291.0,0.61048]
[1766123604330,4.55e-06,87295.0,87287.0,0.45033]
[1766123606382,4.55e-06,87295.0,87286.0,0.00576]
[1766123606383,4.55e-06,87295.0,87294.0,0.61048]
[1766123606563,4.55e-06,87295.0,87294.0,1.06081]
[1766123607222,4.55e-06,87295.0,87294.0,1.06657]
[1766123612376,0.49277,87311.0,87299.0,0.01145488]
[1766123612579,0.49277,87311.0,87300.0,0.01145475]
[1766123613202,0.49277,87311.0,87299.0,0.00010933]
[1766123613633,0.49277,87311.0,87299.0,0.01156421]
[1766123613830,0.49277,87311.0,87300.0,0.01145475]
[1766123614148,0.49277,87311.0,87299.0,0.00010933]
[1766123614310,0.49277,87311.0,87299.0,0.01156421]
[1766123614704,0.49277,87311.0,87299.0,0.00010933]
[1766123615426,0.49277,87311.0,87299.0,0.01156421]
[1766123616028,0.48701,87311.0,87299.0,0.00010933]
[1766123616282,0.00576,87310.0,87299.0,0.00010933]
[1766123616820,0.49171,87310.0,87299.0,3.3e-07]
[1766123616940,0.00576,87309.0,87299.0,3.3e-07]
[1766123617593,0.00576,87308.0,87300.0,1.11749]
[1766123618702,0.00576,87308.0,87300.0,0.49869]
[1766123620465,0.00576,87309.0,87300.0,0.49869]
[1766123621900,0.00576,87309.0,87299.0,3.3e-07]
[1766123622297,0.49171,87309.0,87299.0,3.3e-07]
[1766123623091,0.48595,87308.0,87299.0,3.3e-07]
[1766123623467,0.93057,87308.0,87299.0,3.3e-07]
[1766123623708,0.00576,87309.0,87299.0,3.3e-07]
[1766123624046,0.44462,87308.0,87299.0,3.3e-07]
[1766123624201,0.48595,87307.0,87299.0,3.3e-07]
[1766123625345,0.48595,87304.0,87299.0,3.3e-07]
[1766123627708,0.93057,87304.0,87299.0,3.3e-07]
[1766123627924,0.48595,87303.0,87299.0,3.3e-07]
[1766123628227,0.48595,87296.0,87278.0,0.49869]
[1766123628386,0.48595,87293.0,87281.0,0.00576]
[1766123629198,0.48595,87293.0,87281.0,0.01721724]
[1766123629401,0.48595,87293.0,87281.0,0.00576]
[1766123629601,0.93057,87293.0,87281.0,0.00576]
[1766123631115,0.48595,87293.0,87281.0,0.00576]
[1766123633050,0.48595,87292.0,87281.0,0.00576]
[1766123633483,0.48595,87292.0,87277.0,0.01145777]
[1766123633658,0.48595,87292.0,87280.0,0.00576]
[1766123633854,0.48595,87291.0,87280.0,0.00576]
[1766123638040,0.48595,87290.0,87280.0,0.00576]
[1766123638821,0.48595,87289.0,87280.0,0.00576]
[1766123640247,0.00576,87295.0,87289.0,0.000109]
[1766123640464,0.00576,87295.0,87283.0,1.11749]
[1766123640807,0.00010927,87296.0,87284.0,0.01145685]
[1766123641009,0.48425464,87299.0,87292.0,0.0114558]
[1766123641206,0.00576,87302.0,87296.0,0.6188]
[1766123641450,0.00576,87302.0,87297.0,1.11749]
[1766123641658,0.00576,87305.0,87296.0,0.00036455]
[1766123641827,0.01797414,87312.0,87296.0,0.00036455]
[1766123641828,0.46259414,87312.0,87296.0,0.00036455]
[1766123642030,0.2444556,87314.0,87303.0,0.01145436]
[1766123642266,0.2444556,87314.0,87300.0,0.01145475]
[1766123642267,0.2444556,87314.0,87302.0,1.12894449]
[1766123642490,0.00576,87313.0,87302.0,1.12894449]
[1766123642667,0.00576,87313.0,87303.0,0.01145436]
[1766123642880,0.00576,87313.0,87302.0,1.35803291]
[1766123643029,0.00576,87312.0,87302.0,1.12894449]
[1766123643736,0.00576,87312.0,87305.0,0.01145409]
[1766123643941,0.00576,87312.0,87304.0,0.01145422]
[1766123644182,0.00576,87312.0,87303.0,0.60171436]
[1766123644368,0.00576,87312.0,87299.0,0.00576]
[1766123644570,0.47954,87311.0,87299.0,0.01721488]
[1766123644746,0.47954,87311.0,87300.0,0.01145475]
[1766123645085,0.2444556,87314.0,87302.0,1.07599449]
[1766123645285,0.00576,87312.0,87302.0,1.07599449]
[1766123645487,0.00576,87312.0,87305.0,0.01145409]
[1766123645800,0.00576,87313.0,87302.0,1.06454]
[1766123646409,0.48304,87312.0,87300.0,0.01145475]
[1766123647106,0.48304,87312.0,87301.0,0.01145462]
[1766123647896,0.48304,87312.0,87302.0,0.01145449]
[1766123648120,0.01797,87319.0,87309.0,0.01145357]
[1766123648277,0.03077166,87339.0,87323.0,0.22903351]
[1766123648478,0.00576,87338.0,87323.0,0.82285351]
[1766123648701,0.00576,87337.0,87323.0,0.59382]
[1766123649182,0.4888,87337.0,87323.0,0.59382]
[1766123649386,0.4888,87337.0,87320.0,0.00576]
[1766123649387,0.92766,87335.0,87320.0,0.00576]
[1766123649585,0.48304,87334.0,87320.0,0.00576]
[1766123650235,0.48304,87334.0,87320.0,0.01721213]
[1766123650469,0.48304,87334.0,87320.0,0.00576]
[1766123650834,0.48304,87334.0,87321.0,0.01145199]
[1766123651195,0.48304,87334.0,87320.0,0.00576]
[1766123651650,0.48304,87334.0,87321.0,0.01145199]
[1766123651879,0.48304,87334.0,87320.0,0.01721213]
[1766123652288,0.48304,87334.0,87322.0,0.01145186]
[1766123652562,0.48304,87334.0,87320.0,0.61103213]
[1766123652725,0.48304,87334.0,87320.0,0.59958]
[1766123653088,0.48304,87334.0,87320.0,0.61103213]
[1766123653432,0.05954187,87336.0,87320.0,0.68212538]
[1766123653433,0.48304,87332.0,87320.0,0.68212538]
[1766123654385,0.48304,87332.0,87320.0,0.69357751]
[1766123654529,0.48304,87332.0,87320.0,0.68212538]
[1766123654736,0.48304,87332.0,87320.0,0.69357751]
[1766123655182,0.48304,87332.0,87320.0,0.68212538]
[1766123655991,0.48304,87332.0,87320.0,0.01721213]
[1766123656207,0.48304,87332.0,87320.0,0.00576]
[1766123656615,0.48304,87332.0,87320.0,0.01721213]
[1766123656823,0.48304,87332.0,87320.0,0.00576]
[1766123657337,0.44462,87331.0,87308.0,0.0114537]
[1766123657626,0.48304,87322.0,87309.0,0.01145357]
[1766123657820,0.48304,87322.0,87310.0,0.00576]
[1766123658126,0.48304,87322.0,87312.0,0.01145317]
[1766123658564,0.48304,87322.0,87310.0,0.00576]
[1766123658752,0.48304,87322.0,87310.0,0.69357882]
[1766123659101,0.00576,87328.0,87310.0,0.68212538]
[1766123659295,0.00576,87328.0,87318.0,0.59382]
[1766123659536,0.00576,87328.0,87319.0,1.05545]
[1766123661845,0.00576,87328.0,87319.0,0.46163]
[1766123662178,0.00576,87328.0,87315.0,0.01721278]
[1766123662383,0.00576,87328.0,87315.0,0.00576]
[1766123662384,0.4888,87328.0,87315.0,0.00576]
[1766123662873,0.4888,87328.0,87316.0,0.59382]
[1766123663235,0.4888,87328.0,87316.0,1.05545]
[1766123664533,0.4888,87328.0,87316.0,0.46163]
[1766123664729,0.4888,87328.0,87317.0,0.59382]
[1766123665592,0.00576,87328.0,87321.0,1.05545]
[1766123666958,0.92766,87336.0,87318.0,0.69357777]
[1766123666959,0.48304,87336.0,87322.0,0.22903735]
[1766123667160,0.48304,87345.0,87331.0,0.46163]
[1766123667453,0.4888,87345.0,87333.0,0.46163]
[1766123668508,0.001099,87333.0,87331.0,0.00576]
[1766123668850,0.48329098,87343.0,87331.0,0.00576]
[1766123669620,0.49474009,87343.0,87331.0,0.00576]
[1766123670848,0.92766,87342.0,87331.0,0.004661]
[1766123671185,0.24043869,87341.0,87327.0,0.00576]
[1766123671396,0.01145055,87332.0,87322.0,0.00576]
[1766123671665,0.44462,87331.0,87318.0,0.00576]
[1766123671840,0.48304,87330.0,87318.0,0.00576]
[1766123672152,0.45607081,87330.0,87318.0,0.00576]
[1766123672356,0.48304,87329.0,87318.0,0.00576]
[1766123677400,0.48304,87329.0,87311.0,0.22906603]
[1766123677401,0.01145147,87325.0,87309.0,0.00576]
[1766123677569,0.49996,87322.0,87309.0,0.00576]
[1766123677772,0.49996,87321.0,87309.0,0.00576]
[1766123677949,0.49996,87320.0,87309.0,0.00576]
[1766123679793,0.43475,87320.0,87309.0,0.00576]
[1766123681355,0.43396,87318.0,87303.0,0.46306]
[1766123681535,0.49996,87317.0,87303.0,0.46306]
[1766123681738,0.51141278,87315.0,87303.0,0.46306]
[1766123682086,0.50572,87314.0,87303.0,0.46306]
[1766123682232,0.50572,87314.0,87297.0,0.04588]
[1766123682233,0.49996,87309.0,87297.0,0.04588]
[1766123682438,0.49996,87308.0,87297.0,0.05164]
[1766123682664,0.50572,87307.0,87297.0,0.00576]
[1766123683035,0.50572,87307.0,87285.0,0.4573]
[1766123683036,0.4319,87301.0,87285.0,0.4573]
[1766123683299,0.49996,87298.0,87288.0,0.00576]
[1766123683509,0.00576,87300.0,87280.0,0.00576]
[1766123683510,0.51141567,87293.0,87280.0,0.00576]
[1766123683627,0.49996,87289.0,87280.0,0.00576]
[1766123683827,0.49996,87289.0,87272.0,0.61936]
[1766123684031,0.44204632,87288.0,87273.0,0.00576]
[1766123684238,0.49996,87280.0,87273.0,0.00612455]
[1766123684460,0.49996,87280.0,87273.0,4.55e-06]
[1766123684461,0.49996,87276.0,87273.0,4.55e-06]
[1766123687133,0.50572,87275.0,87273.0,4.55e-06]
[1766123687544,0.92541,87274.0,87273.0,4.55e-06]
[1766123687768,0.49996,87270.0,87256.0,0.00576]
[1766123687973,0.50572,87269.0,87256.0,0.00586927]
[1766123691433,0.50572,87269.0,87256.0,0.01732979]
[1766123691674,0.50572,87269.0,87256.0,0.00586927]
[1766123693815,0.50572,87269.0,87238.0,0.22925651]
[1766123693816,0.001099,87256.0,87238.0,0.22925651]
[1766123694018,0.001099,87256.0,87243.0,1.07706]
[1766123694019,0.51827952,87256.0,87243.0,1.07706]
[1766123694230,0.51718052,87256.0,87243.0,1.07706]
[1766123694453,0.50572,87256.0,87243.0,1.07706]
[1766123694835,0.51718052,87256.0,87243.0,1.07706]
[1766123695037,0.01146066,87255.0,87243.0,0.4577]
[1766123695332,0.49996,87255.0,87243.0,0.4577]
[1766123695551,0.49996,87253.0,87243.0,0.0004]
[1766123695865,0.49996,87250.0,87236.0,0.4573]
[1766123696148,0.0004,87243.0,87237.0,0.00576]
[1766123696320,0.49996,87245.0,87236.0,0.00010948]
[1766123696321,0.50572,87245.0,87236.0,0.00010948]
[1766123696708,0.49996,87244.0,87236.0,0.00010948]
[1766123700035,0.00576,87243.0,87236.0,0.00010948]
[1766123700691,0.50572,87243.0,87236.0,0.00010948]
[1766123701087,0.00576,87243.0,87236.0,0.00010948]
[1766123702073,0.49996,87241.0,87231.0,0.00576]
[1766123702407,0.000989,87231.0,87220.0,0.0004]
[1766123702587,0.49996,87234.0,87220.0,0.00616]
[1766123702786,0.49996,87234.0,87220.0,0.0004]
[1766123703738,0.4941,87233.0,87220.0,0.0004]
[1766123704037,0.4941,87233.0,87220.0,0.01186526]
[1766123704210,0.4941,87233.0,87220.0,0.0004]
[1766123704837,0.4941,87233.0,87220.0,0.01186526]
[1766123705036,0.4941,87233.0,87222.0,0.01146499]
[1766123705260,0.4941,87233.0,87223.0,0.01146486]
[1766123705422,0.4941,87233.0,87224.0,0.01146473]
[1766123706451,0.4941,87233.0,87225.0,0.0114646]
[1766123706877,0.4941,87233.0,87224.0,0.01146473]
[1766123707075,0.4941,87233.0,87224.0,0.24075924]
[1766123707669,0.00576,87235.0,87228.0,0.0114642]
[1766123707870,0.00576,87235.0,87225.0,0.55963]
[1766123707871,0.00576,87235.0,87226.0,0.01146447]
[1766123708233,0.00576,87235.0,87225.0,0.5710946]
[1766123708737,0.00576,87235.0,87226.0,0.01146447]
[1766123709196,0.00576,87235.0,87225.0,0.5710946]
[1766123709197,0.00576,87235.0,87225.0,0.55963]
[1766123710130,0.48593,87234.0,87224.0,2.0]
[1766123710333,0.48593,87234.0,87226.0,0.01146447]
[1766123710638,0.00576,87233.0,87227.0,0.24075014]
[1766123710826,0.00576,87233.0,87227.0,0.01146434]
[1766123710827,0.00586923,87233.0,87227.0,0.01146434]
[1766123710989,0.00586923,87233.0,87228.0,0.0114642]
[1766123711195,0.49179923,87233.0,87227.0,0.01146434]
[1766123711394,0.00586923,87233.0,87228.0,0.0114642]
[1766123711595,0.00586923,87233.0,87224.0,2.55963]
[1766123711835,0.01146144,87249.0,87238.0,0.01146289]
[1766123711836,0.00576,87249.0,87238.0,0.01146289]
[1766123712075,0.00576,87249.0,87241.0,0.48907]
[1766123712279,0.48593,87256.0,87245.0,0.01146197]
[1766123712485,0.00576,87255.0,87244.0,0.0114621]
[1766123712637,0.48593,87264.0,87248.0,0.01146158]
[1766123712813,0.48593,87264.0,87249.0,0.02521517]
[1766123712814,0.00576,87263.0,87249.0,0.02521517]
[1766123713015,0.00576,87263.0,87248.0,0.01146158]
[1766123713242,0.00576,87263.0,87249.0,0.01146144]
[1766123713761,0.00576,87263.0,87249.0,0.55963]
[1766123714061,0.05954187,87254.0,87243.0,0.55963]
[1766123714261,0.48593,87252.0,87240.0,0.00576]
[1766123715254,0.38895,87251.0,87240.0,0.00576]
[1766123715453,0.05954187,87254.0,87229.0,0.01146407]
[1766123715454,0.48593,87246.0,87229.0,0.01146407]
[1766123715639,0.48593,87243.0,87230.0,0.00576]
[1766123716269,0.00576,87246.0,87230.0,0.00576]
[1766123716270,0.38794,87242.0,87230.0,0.00576]
[1766123716450,0.48593,87241.0,87230.0,0.00576]
[1766123717077,0.48593,87241.0,87230.0,0.01722394]
[1766123717280,0.48593,87241.0,87230.0,0.00576]
[1766123718701,0.48593,87241.0,87230.0,0.01722394]
[1766123719082,0.48593,87241.0,87230.0,0.00576]
[1766123719481,0.48593,87241.0,87230.0,0.01722394]
[1766123719694,0.48593,87241.0,87230.0,0.00576]
[1766123721285,0.48593,87237.0,87224.0,2.05168]
[1766123721491,0.48593,87236.0,87224.0,2.05168]
[1766123721769,0.48593,87236.0,87224.0,2.06314473]
[1766123721943,0.48593,87236.0,87225.0,0.0114646]
[1766123722138,0.48593,87236.0,87224.0,2.06314473]
[1766123722466,0.48593,87236.0,87224.0,2.05178923]
[1766123722673,0.06530187,87240.0,87224.0,2.05178923]
[1766123722674,0.38107,87235.0,87224.0,2.05178923]
[1766123722826,0.38107,87233.0,87224.0,1.30904923]
[1766123723634,0.00576,87234.0,87224.0,1.30904923]
[1766123724039,0.00576,87234.0,87227.0,0.01146434]
[1766123724783,0.00576,87234.0,87226.0,0.01146447]
[1766123724989,0.00576,87234.0,87229.0,0.01146407]
[1766123725350,0.00576,87234.0,87224.0,1.30904923]
[1766123725351,0.00576,87239.0,87233.0,0.01146355]
[1766123725551,0.00576,87239.0,87232.0,0.48907]
[1766123725864,0.00576,87239.0,87232.0,1.0487]
[1766123726291,0.00576,87239.0,87232.0,1.06016368]
[1766123726929,0.00576,87239.0,87232.0,0.01146368]
[1766123727252,0.00576,87239.0,87234.0,0.01146342]
[1766123727431,0.02475629,87253.0,87238.0,0.22925562]
[1766123727637,0.02475962,87266.0,87245.0,0.22923949]
[1766123727852,0.00576,87266.0,87251.0,0.55963]
[1766123728045,0.41722,87266.0,87246.0,0.00576]
[1766123728250,0.42867921,87266.0,87246.0,0.00576]
[1766123728659,0.42867921,87266.0,87241.0,0.24071027]
[1766123728660,0.01146,87260.0,87241.0,0.00576]
[1766123728856,0.41045,87258.0,87241.0,0.00576]
[1766123729465,0.41045,87258.0,87241.0,0.0172225]
[1766123729642,0.41045,87258.0,87241.0,0.00576]
[1766123729839,0.41045,87258.0,87242.0,0.01146236]
[1766123730280,0.41045,87258.0,87241.0,0.00576]
[1766123730610,0.40845,87258.0,87241.0,0.00576]
[1766123731012,0.40845,87258.0,87241.0,0.0172225]
[1766123731214,0.40845,87258.0,87241.0,0.00576]
[1766123731750,0.41991026,87258.0,87241.0,0.00576]
[1766123732096,0.40845,87258.0,87241.0,0.00576]
[1766123732480,0.41991026,87258.0,87241.0,0.00576]
[1766123732857,0.05954187,87254.0,87241.0,0.00576]
[1766123733056,0.00576,87253.0,87241.0,0.004661]
[1766123733264,0.41225,87253.0,87241.0,0.004661]
[1766123735292,0.41225,87253.0,87235.0,0.57685328]
[1766123735594,0.41225,87253.0,87235.0,0.56539]
[1766123736998,0.40225,87267.0,87247.0,0.01146171]
[1766123737239,0.40225,87267.0,87253.0,0.001099]
[1766123737240,0.12268108,87266.0,87253.0,0.001099]
[1766123737421,0.40225,87262.0,87253.0,0.001099]
[1766123737599,0.40225,87262.0,87245.0,0.49134]
[1766123737799,0.41370974,87262.0,87240.0,1.25026153]
[1766123738019,0.41276,87260.0,87240.0,0.67769153]
[1766123738224,0.4013,87256.0,87241.0,0.00576]
[1766123738781,0.4013,87256.0,87236.0,0.00576]
[1766123738782,0.40036,87251.0,87236.0,0.00576]
[1766123738988,0.40036,87249.0,87236.0,0.00576]
[1766123739668,0.00576,87250.0,87237.0,0.01146302]
[1766123739850,0.00576,87250.0,87239.0,0.01146276]
[1766123740060,0.41088947,87264.0,87250.0,0.001099]
[1766123740206,0.01145934,87265.0,87243.0,0.01146223]
[1766123740207,0.04592,87258.0,87244.0,0.0114621]
[1766123740546,0.39943,87260.0,87240.0,0.68915416]
[1766123740547,0.00576,87257.0,87247.0,0.01146171]
[1766123740753,0.40427,87257.0,87242.0,0.01146236]
[1766123740894,0.40427,87257.0,87243.0,0.01146223]
[1766123741088,0.40427,87257.0,87245.0,0.01146197]
[1766123741299,0.40427,87257.0,87244.0,0.0114621]
[1766123743359,0.40427,87257.0,87243.0,0.01146223]
[1766123744627,0.39851,87257.0,87242.0,0.01146236]
[1766123744914,0.01145947,87264.0,87240.0,1.25026153]
[1766123744915,0.39901,87256.0,87240.0,1.25026153]
[1766123745092,0.00576,87255.0,87240.0,1.25026153]
[1766123745300,0.39325,87256.0,87240.0,1.25026153]
[1766123745301,0.00576,87254.0,87240.0,1.25026153]
[1766123747092,0.00576,87254.0,87242.0,0.01146236]
[1766123747336,0.00576,87254.0,87243.0,0.01146223]
[1766123747962,0.00576,87254.0,87242.0,0.01146236]
[1766123748523,0.00576,87254.0,87243.0,0.01146223]
[1766123748898,0.00576,87254.0,87244.0,0.0114621]
[1766123749096,0.00576,87254.0,87245.0,0.01146197]
[1766123749258,0.004661,87254.0,87245.0,0.01146197]
[1766123749457,0.004661,87254.0,87246.0,0.01146184]
[1766123749658,0.004661,87254.0,87244.0,0.0114621]
[1766123749859,0.004661,87254.0,87243.0,1.06391]
[1766123750046,0.00576,87253.0,87243.0,1.07537223]
[1766123750248,0.00576,87253.0,87244.0,0.0114621]
[1766123750649,0.00576,87253.0,87243.0,0.01146223]
[1766123750892,0.00576,87253.0,87244.0,0.0114621]
[1766123751062,0.00576,87253.0,87243.0,0.01146223]